Cogmind - Beta 13 @@@ ROGUE MODE // 2024.04.06 @ 13:39:45 Player: Essnato Result: Destroyed by H-61 Shepherd with Heavy Assault Cannon Performance ------------- Evolutions (2) 1000 Regions Visited (5) 1000 Robots Destroyed (29) 145 Value Destroyed (671) 671 Prototype IDs (3) 60 Alien Tech Used (0) 0 Bonus (125) 125 TOTAL SCORE: 3001 Bonus ------- High Alert Combat Kills 38 Follower Combat Kills 87 Cogmind --------- Core Integrity 0/550 Matter 258/300 Energy 98/100 System Corruption 0% Temperature Cool (0) Movement Core (50) Location -8/Materials Parts ------- > --- POWER (1) -------- (None) > --- PROPULSION (4) --- (None) > --- UTILITY (4) ------ Visual Processing Unit > --- WEAPON (2) ------- (None) > --- INVENTORY (5) ---- Light Ion Engine Improved Heat Sink Sensor Array Experimental Sensor Array Light Assault Rifle Peak State ------------ > --- POWER ------------ Light Ion Engine > --- PROPULSION ------- Flight Unit Flight Unit Flight Unit VTOL Module > --- UTILITY ---------- Small Storage Unit Visual Processing Unit Experimental Sensor Array Signal Interpreter > --- WEAPON ----------- Grenade Launcher Axe > --- INVENTORY -------- Light Ion Engine Flight Unit Improved Heat Sink Sensor Array Light Assault Rifle [Rating: 23] Favorites ----------- Power Light Ion Engine Engine Light Ion Engine Propulsion Flight Unit Leg Aluminum Leg Wheel Compact Wheel Hover Unit Hover Unit Flight Unit Flight Unit Utility Small Storage Unit Device Sensor Array Storage Small Storage Unit Processor Signal Interpreter Weapon Light Assault Rifle Energy Gun Small Laser Ballistic Gun Light Assault Rifle Launcher Grenade Launcher Impact Weapon Heavy Hammer Slashing Weapon Axe Build | -11 -10 -10 -9 -9 -8 ------- Run | Yrd Mat Min Mat Min Mat Slots Evolved 4 | . . . 2 . 2 Power . | . . . . . . Propulsion 2 | . . . 1 . 1 Utility 2 | . . . 1 . 1 Weapon . | . . . . . . Parts Attached 34 | 8 11 5 3 1 6 Power 4 | 1 2 1 . . . Engine 4 | 1 2 1 . . . Core . | . . . . . . Reactor . | . . . . . . Propulsion 12 | 3 3 2 2 . 2 Treads . | . . . . . . Leg 2 | 1 1 . . . . Wheel 2 | 2 . . . . . Hover 2 | . 2 . . . . Flight 6 | . . 2 2 . 2 Utility 6 | 1 2 . 1 . 2 Device 2 | . . . 1 . 1 Storage 1 | 1 . . . . . Processor 3 | . 2 . . . 1 Hackware . | . . . . . . Protection . | . . . . . . Artifact . | . . . . . . Weapon 12 | 3 4 2 . 1 2 Energy Gun 4 | 1 2 1 . . . Energy Cannon . | . . . . . . Ballistic Gun 4 | 2 2 . . . . Ballistic Cannon . | . . . . . . Launcher 2 | . . 1 . 1 . Special Weapon . | . . . . . . Impact Weapon 1 | . . . . . 1 Slashing Weapon 1 | . . . . . 1 Piercing Weapon . | . . . . . . Special Melee Weapon . | . . . . . . Unidentified Prototypes 1 | . . . . . 1 Parts Lost 15 | . 4 . . . 11 Power 2 | . 1 . . . 1 Propulsion 7 | . 2 . . . 5 Utility 2 | . . . . . 2 Weapon 4 | . 1 . . . 3 Highest Loss Streak 11 | . 3 . . . 11 To Critical Strikes . | . . . . . . Average Slot Usage (%) 83 | . 93 73 66 88 71 Engine 12 | . 14 14 11 11 6 Wheel 6 | . 13 . . . . Hover 3 | . 8 1 . . . Flight 15 | . . 26 27 33 24 Device 3 | . . . 5 11 6 Storage 12 | . 14 14 11 11 8 Processor 12 | . 13 14 11 11 15 Energy Gun 3 | . 7 . . . . Ballistic Gun 9 | . 20 1 . . . Launcher 2 | . . . . 11 5 Naked Turns . | . . . . . . Heaviest Build 15 | 11 12 12 9 12 15 Greatest Support 26 | 26 26 12 12 12 16 Greatest Overweight (x) 3 | . 3 1 . . 3 Average Overweight (x) . | . . . . . . Largest Inventory Capacity 8 | 8 8 8 8 8 8 Average Capacity 7 | 6 8 8 8 8 7 Most Carried 8 | 3 8 8 8 8 7 Average Carried 7 | 1 6 7 7 7 5 Final Capacity 8 | 8 8 8 8 8 5 Final Carried 8 | 3 8 8 8 8 5 Class Distribution -------------------- 71% | Mutant 21% | Scavenger-Sprinter 5% | Scavenger-Scout Dominant Class ---------------- Mutant | -10/Materials Mutant | -10/Mines Mutant | -9/Materials Scavenger-Sprinter | -9/Mines Scavenger-Scout | -8/Materials Resources | -11 -10 -10 -9 -9 -8 ----------- Run | Yrd Mat Min Mat Min Mat Matter Collected 746 | 247 282 64 30 118 5 Remotely . | . . . . . . Salvage Created 640 | . 368 17 . 195 60 Parts 49 | . 20 6 . 21 2 Haulers Intercepted 1 | . 1 . . . . Recyclers Shooed . | . . . . . . Parts Field Recycled . | . . . . . . Retrieved Matter . | . . . . . . Parts Self-Destructed . | . . . . . . Prevented . | . . . . . . Kills | -11 -10 -10 -9 -9 -8 ------- Run | Yrd Mat Min Mat Min Mat Combat Hostiles Destroyed 23 | . 6 3 . 13 1 Melee 1 | . . . . . 1 Guns 6 | . 6 . . . . AOE 16 | . . 3 . 13 . Classes Destroyed 9 | . 3 1 . 4 1 Worker 1 | . . . . 1 . Builder 1 | . . . . 1 . Tunneler 1 | . . . . 1 . Hauler 1 | . 1 . . . . Watcher 2 | . 2 . . . . Swarmer 11 | . . 3 . 8 . Grunt 9 | . 6 . . 3 . Duelist 2 | . . . . 2 . Sentry 1 | . . . . . 1 Best Kill Streak 8 | . 2 3 . 8 1 Combat Bots Only 8 | . 2 3 . 8 1 Max Kills in Single Turn 4 | . 1 3 . 4 1 Gunslinging . | . . . . . . Exploded 4 | . . 3 . 4 . Melee 1 | . . . . . 1 Uniques/NPCs Destroyed . | . . . . . . Combat | -11 -10 -10 -9 -9 -8 -------- Run | Yrd Mat Min Mat Min Mat Hostile Shots Fired 120 | . 44 3 1 13 59 Missed 26 | . 5 3 1 8 9 Damage Taken 1620 | . 533 20 . 112 955 Core 716 | . 125 . . 16 575 Absorbed by Shields . | . . . . . . Core Remaining (%) 82 | 100 . 50 . 96 . Volleys Fired 68 | . 52 1 . 15 . Largest 2 | . 2 1 . 1 . Hottest 60 | . 60 30 . 30 . Shots Fired 120 | . 104 1 . 15 . Gun 104 | . 104 . . . . Cannon . | . . . . . . Launcher 16 | . . 1 . 15 . Special . | . . . . . . Kinetic 91 | . 91 . . . . Thermal 13 | . 13 . . . . Explosive 16 | . . 1 . 15 . Electromagnetic . | . . . . . . Robot Hit Streak 13 | . 13 2 . 3 . Robot Miss Streak 3 | . 3 . . 3 . Penetration Max . | . . . . . . Secondary Targets . | . . . . . . Shots Hit Robots 77 | . 69 1 . 4 3 Core Hits 51 | . 23 3 . 24 1 Critical Kills . | . . . . . . Critical Parts Destroyed . | . . . . . . Critical Strikes . | . . . . . . Melee Attacks 13 | . . . . . 13 Impact 3 | . . . . . 3 Slashing 10 | . . . . . 10 Piercing . | . . . . . . Sneak Attacks . | . . . . . . Combat Hostiles . | . . . . . . Follow-up Attacks . | . . . . . . Damage Inflicted 1946 | . 728 130 . 952 136 Guns 724 | . 724 . . . . Cannons . | . . . . . . Explosions 1082 | . . 130 . 952 . Melee 136 | . . . . . 136 Ramming 4 | . 4 . . . . Kinetic 612 | . 612 . . . . Thermal 179 | . 112 . . 67 . Explosive 1015 | . . 130 . 885 . Electromagnetic . | . . . . . . Impact 102 | . . . . . 102 Slashing 34 | . . . . . 34 Piercing . | . . . . . . Highest Corruption . | . . . . . . Average Corruption . | . . . . . . Corruption Purged . | . . . . . . Corruption Blocked . | . . . . . . Overload Shots . | . . . . . . Overflow Damage . | . . . . . . Projectiles . | . . . . . . Explosions . | . . . . . . Melee . | . . . . . . Knockbacks . | . . . . . . Impact . | . . . . . . Kinetic . | . . . . . . Secondary . | . . . . . . Self-Inflicted Damage 85 | . 1 21 . 63 . Shots 4 | . . 1 . 3 . Rammed 1 | . 1 . . . . Targets Rammed 2 | . 2 . . . . Kicked 1 | . 1 . . . . Crushed . | . . . . . . Highest Temperature 58 | . 58 . . 1 . Average Temperature 16 | . 17 . . 1 . Received Heat Transfer 396 | . 297 . . 18 81 Siege Activations . | . . . . . . Robots Corrupted . | . . . . . . Combat Hostiles . | . . . . . . Parts Fried . | . . . . . . Impact Corruptions . | . . . . . . Robots Melted . | . . . . . . Combat Hostiles . | . . . . . . Parts Melted . | . . . . . . Heat Transferred 400 | . 250 . . 150 . Parts Sabotaged . | . . . . . . Parts Stolen . | . . . . . . Parts Stripped . | . . . . . . Power Chain Reactions . | . . . . . . Alert | -11 -10 -10 -9 -9 -8 ------- Run | Yrd Mat Min Mat Min Mat Peak Influence 611 | . 158 125 276 611 258 Initial 237 | . . 35 48 31 237 Average 135 | . 68 124 120 344 237 Maximum Alert Level 2 | . . . 1 2 1 Low Security (%) 77 | 100 100 100 87 9 11 Level 1 16 | . . . 12 52 88 Level 2 5 | . . . . 38 . Level 3 . | . . . . . . Level 4 . | . . . . . . Level 5 . | . . . . . . High Security . | . . . . . . Max Security . | . . . . . . Squads Dispatched 2 | . 1 . . . 1 Investigation . | . . . . . . Extermination . | . . . . . . Reinforcement 2 | . 1 . . . 1 Assault . | . . . . . . Garrison . | . . . . . . Intercept . | . . . . . . Searches Triggered . | . . . . . . Construction Impeded . | . . . . . . Haulers Reinforced . | . . . . . . Active Scanning Responses . | . . . . . . Cargo Convoy Interrupts . | . . . . . . Stealth | -11 -10 -10 -9 -9 -8 --------- Run | Yrd Mat Min Mat Min Mat Distress Signals . | . . . . . . Communications Jammed . | . . . . . . Distress Signals . | . . . . . . Times Spotted 44 | . 17 3 6 14 4 Peak Tracking Total 5 | . 3 3 4 4 5 Tactical Retreats 6 | . 1 . . 5 . Traps | -11 -10 -10 -9 -9 -8 ------- Run | Yrd Mat Min Mat Min Mat Traps Triggered . | . . . . . . Indirectly . | . . . . . . Trap Hack Attempts . | . . . . . . Triggered . | . . . . . . Disarmed . | . . . . . . Reprogrammed . | . . . . . . Reused . | . . . . . . Traps Extracted . | . . . . . . Installed . | . . . . . . Triggered . | . . . . . . Machines | -11 -10 -10 -9 -9 -8 ---------- Run | Yrd Mat Min Mat Min Mat Machines Disabled 3 | . . 1 . 2 . Max in Single Turn 2 | . . 1 . 2 . Machines Repaired . | . . . . . . Machines Dismantled . | . . . . . . Machines Sabotaged . | . . . . . . Overloaded Fab Kills . | . . . . . . Hacking | -11 -10 -10 -9 -9 -8 --------- Run | Yrd Mat Min Mat Min Mat Machines Accessed 8 | . 4 . 3 1 . Terminals 8 | . 4 . 3 1 . Fabricators . | . . . . . . Repair Stations . | . . . . . . Recycling Units . | . . . . . . Scanalyzers . | . . . . . . Garrison Access . | . . . . . . Total Hacks 21 | . 9 . 8 4 . Successful 14 | . 4 . 7 3 . Failed 7 | . 5 . 1 1 . Catastrophic . | . . . . . . Database Lockouts . | . . . . . . Manual 2 | . . . 2 . . Terminals 21 | . 9 . 8 4 . Fabricators . | . . . . . . Repair Stations . | . . . . . . Recycling Units . | . . . . . . Scanalyzers . | . . . . . . Garrison Access . | . . . . . . Terminal Hacks 14 | . 4 . 7 3 . Record 4 | . . . 2 2 . Robot Analysis 1 | . . . 1 . . Prototype ID Bank 1 | . . . 1 . . Alert Level 2 | . 1 . 1 . . Unreport Threat 1 | . . . 1 . . Locate Traps 1 | . 1 . . . . Dispatch Records 1 | . 1 . . . . Patrol Status 1 | . . . . 1 . Hauler Manifests 1 | . . . 1 . . Zone Layout 1 | . 1 . . . . Fabricator Hacks . | . . . . . . Repair Station Hacks . | . . . . . . Recycling Unit Hacks . | . . . . . . Scanalyzer . | . . . . . . Garrison Access Hacks . | . . . . . . Unauthorized Hacks . | . . . . . . Terminals . | . . . . . . Fabricators . | . . . . . . Repair Stations . | . . . . . . Recycling Units . | . . . . . . Scanalyzers . | . . . . . . Garrison Access . | . . . . . . Data Cores Recovered . | . . . . . . Used . | . . . . . . Hacking Detections 6 | . 4 . 1 1 . Full Trace Events . | . . . . . . Feedback Events . | . . . . . . Feedback Blocked . | . . . . . . Robot Schematics Acquired . | . . . . . . Robots Built . | . . . . . . Authchips . | . . . . . . Time . | . . . . . . Total Robot Build Rating . | . . . . . . Part Schematics Acquired . | . . . . . . Parts Built . | . . . . . . Authchips . | . . . . . . Time . | . . . . . . Total Part Build Rating . | . . . . . . Parts Repaired . | . . . . . . Time . | . . . . . . Parts Recycled . | . . . . . . Recycled Matter . | . . . . . . Retrieved Matter . | . . . . . . Retrieved Components . | . . . . . . Parts Scanalyzed . | . . . . . . Part Schematics Acquired . | . . . . . . Parts Damaged . | . . . . . . Bothacking | -11 -10 -10 -9 -9 -8 ------------ Run | Yrd Mat Min Mat Min Mat Used RIF Installer . | . . . . . . Robots Hacked . | . . . . . . Non-combat . | . . . . . . Combat . | . . . . . . Robot Hacks Applied . | . . . . . . Relay Couplers Released . | . . . . . . Fabnet Peak Effective % . | . . . . . . Robots Rewired . | . . . . . . Allies Hacked . | . . . . . . Hacks Repelled . | . . . . . . Allies | -11 -10 -10 -9 -9 -8 -------- Run | Yrd Mat Min Mat Min Mat Total Allies 3 | . . 3 . . . Largest Group 3 | . . 3 3 . . Highest-Rated Group 40 | . . 40 40 . . Highest-Rated Ally 16 | . . 16 16 . . Total Orders 5 | . . . 5 . . ROAM 1 | . . . 1 . . GUARD 2 | . . . 2 . . AID 2 | . . . 2 . . Ally Attacks 25 | . . . 25 . . Total Damage 284 | . . . 284 . . Kills 6 | . . . 6 . . Allies Corrupted . | . . . . . . Allies Melted . | . . . . . . Intel | -11 -10 -10 -9 -9 -8 ------- Run | Yrd Mat Min Mat Min Mat Robot Analysis Total 1 | . . . 1 . . Derelict Logs Recovered 3 | . . 1 . 2 . Drone Launches . | . . . . . . Drone Recoveries . | . . . . . . Exploration | -11 -10 -10 -9 -9 -8 ------------- Run | Yrd Mat Min Mat Min Mat Turns Passed 1562 | 58 679 208 267 227 123 Spaces Moved 2234 | 48 609 433 407 529 208 Core 20 | 2 1 . . . 17 Treads . | . . . . . . Legs 15 | 2 13 . . . . Wheels 330 | 44 286 . . . . Hover 311 | . 309 2 . . . Flight 1558 | . . 431 407 529 191 Fastest Speed 29 | 50 56 37 32 32 29 Average Speed 47 | 89 77 37 34 32 36 Slowest Speed 200 | 120 200 117 37 32 200 Overloaded Moves . | . . . . . . Propulsion Burnouts . | . . . . . . Robots Hopped 8 | . . 1 3 4 . Cave-ins Triggered . | . . . . . . Exploration Rate (%) 47 | 4 62 73 33 96 16 Regions Visited 5 Branch Regions 2 Pre-discovered Areas 2 | . . 1 . 1 . Known Exits Taken 4 | . 1 1 1 1 . Unknown Exits Taken 1 | 1 . . . . . Scrap Searched 3 | . . 1 . 2 . Spaces Dug 8 | . . . . . 8 Terrain Destroyed 130 | . . 5 . 117 8 Melee 8 | . . . . . 8 Projectile . | . . . . . . AOE 122 | . . 5 . 117 . Terrain Rammed . | . . . . . . Walls Destroyed . | . . . . . . Machines Disabled . | . . . . . . Actions | -11 -10 -10 -9 -9 -8 --------- Run | Yrd Mat Min Mat Min Mat Total 2583 | 59 718 478 528 567 233 Wait 196 | 1 23 28 118 24 2 Move 2213 | 47 608 430 400 520 208 Hop 8 | . . 1 3 4 . Pick Up 24 | 2 13 4 2 2 1 Fast Attach 16 | 7 6 1 1 . 1 Attach 10 | . 2 1 1 1 5 Detach 6 | 1 1 2 . . 2 Swap 8 | 1 3 3 1 . . Drop 19 | . 8 7 2 1 1 Fire 68 | . 52 1 . 15 . Melee 13 | . . . . . 13 Ram 1 | . 1 . . . . Kick 1 | . 1 . . . . Crush . | . . . . . . Escape Stasis . | . . . . . . Rewire . | . . . . . . Trap . | . . . . . . Miscellaneous . | . . . . . . Route ------- -11/Scrapyard -10/Materials (discovered 2 exits: *Mat / *Min) -10/Mines -9/Materials (discovered 2 exits: *Mat / *Min) -9/Mines (discovered 2 exits: *Mat x2) -8/Materials History --------- Turn | Location | Event 14 | -11/Scrapyard | Discovered new exit (range 16) 59 | -11/Scrapyard | Entered Materials 153 | -10/Materials | Discovered new exit (range 16) 318 | -10/Materials | Build established: Mutant 502 | -10/Materials | Lost 3 parts (1p1n1w) 564 | -10/Materials | Identified exit to Mines 635 | -10/Materials | Discovered new exit (range 16) 643 | -10/Materials | Identified exit to Materials 738 | -10/Materials | Entered Mines 779 | -10/Mines | Assembled infested the area 784 | -10/Mines | Assisted by a Guerilla fighting off Assembled 808 | -10/Mines | Assisted by bots powering up and referring to "LRC-V3" 833 | -10/Mines | Learned location of Storage (-7) 859 | -10/Mines | Discovered exit to Materials (range 11) 862 | -10/Mines | Learned Materials security intel 872 | -10/Mines | Received a Rocket Launcher from a helpful Derelict 946 | -10/Mines | Entered Materials 946 | -9/Materials | Accompanied by 3 allies 946 | -9/Materials | Evolved 2 slots: Propulsion x1, Utility x1 1014 | -9/Materials | Discovered new exit (range 16) 1019 | -9/Materials | Identified exit to Materials 1120 | -9/Materials | Discovered new exit (range 16) 1126 | -9/Materials | Identified exit to Mines 1213 | -9/Materials | Entered Mines 1235 | -9/Mines | Lost 3 allies 1248 | -9/Mines | Learned location of 1 exit from Lower Caves 1259 | -9/Mines | Destroyed 8 combat bots 1293 | -9/Mines | Discovered exit to Materials (range 5) 1316 | -9/Mines | Discovered exit to Materials (range 10) 1365 | -9/Mines | Found a damaged Exp. Sensor Array with a note attached 1366 | -9/Mines | Found Prototype Device 1405 | -9/Mines | Build established: Scavenger-Sprinter 1440 | -9/Mines | Entered Materials 1440 | -8/Materials | Evolved 2 slots: Propulsion x1, Utility x1 1441 | -8/Materials | Identified Exp. Sensor Array 1548 | -8/Materials | Core integrity fell below 50% 1560 | -8/Materials | Core integrity fell below 20% 1563 | -8/Materials | Destroyed by H-61 Shepherd with Heavy Assault Cannon Last Messages --------------- 01539_ Critical hit (Burn: +37). 01541_ Slug penetrates Wall. 01543_ Knocked back. 01543_ K-01 Serf collects debris. 01544_ Acquired 5 matter. 01544_ Slug penetrates Wall. 01546_ Y-45 Defender destroyed. 01547_ Slug penetrates Wall. 01547_ Axe destroyed. 01547_ Critical hit (Blast). 01550_ Slug penetrates Wall. 01551_ Wall collapses. 01551_ Acquired Hvy. Hammer. 01553_ Penetrated by Slug. 01553_ Sml. Storage Unit destroyed. 01555_ Slug penetrates Wall. 01555_ Nuclear Reactor explodes. 01556_ Penetrated by Slug. 01559_ Hvy. Hammer destroyed. 01559_ Penetrated by Slug. Map ----- +----------------------------------------------------+ | ????????????##########???????????????????????????? | | ????????????# #???????????????????????????? | | ????????????# """ #???????????????????????????? | | ????????????# """ #???????????????????????????? | | ????????????# """ #???????????????????????????? | | ????????????#! #???????????????????????????? | | ########????# """ ##??????????????????????????? | | = ####?# """ "#??????????????????????????? | | # ### """ ##########??????????????????? | | # ##" ; #??????????????????? | | + #"#####+#### %###### ?? | | # # + ?? | | # # H;##### ?? | | ]/ = #####+#### # #??????????????????? | | / #?# # #% #??????????????????? | | ########?# """ # ; #??????????????????? | | ?????????# """ # ##?????????????????? | | ?????????# """ # = "#?????????????????? | | ?????????# # #"##?????????????????? | | ?????????# # %h % ###??????????????????? | | ?????????#"#####; ##???????????????????? | | ?????????##????## % #???????????????????? | | ????????????????# ##???????????????????? | | ????????????????# #????????????????????? | | ????????????????# #????????????????????? | | ???????????#####; % @ #????????????????????? | | ????????? # ###????????????????????? | | ????????# # !!! #??????????????????????? | | ????????# # !!! #??????????????????????? | | ????????# !! # !!! #??????????????????????? | | ???????## !! # #??????????????????????? | | ???????# ! # #??????????????????????? | | ????????# # #??????????????????????? | | ????????# # #??????????????????????? | | ######### "Y" #w #??????????????????????? | | #?? """ # #??????????????????????? | | """ #???? # #??????????????????????? | | """ #######+## ##+#???????????????????? | | """ # ??????????????? | | # % ??????????????? | | """ # ???????????????? | | """ + #######################???????????????? | | """ # #?????????????????????????????????????? | | # #?????????????????????????????????????? | | ######## #?????????????????????????????????????? | | ???# #?????????????????????????????????????? | | ???# #?????????????????????????????????????? | | ???# #?????????????????????????????????????? | | ???#########?????????????????????????????????????? | | ?????????????????????????????????????????????????? | +----------------------------------------------------+ Best States ------------- Heat Dissipation 31 Energy Generation 10 Energy Capacity 250 Matter Stores 300 Matter Capacity 300 Sight Range 18 Robot Scan Range 20 Terrain Scan Density 10 Evasion (%) 64 Item Schematics ----------------- None Robot Schematics ------------------ None Fabricated ------------ Nothing Alien Tech Used ----------------- None Achievements -------------- None Challenges ------------ None Game ------ Seed MachineConcussiveWeb Manual? 0 Play Time 00:37:12 Cumulative 9.5 hours Start 2024.04.06 @ 13:00:10 End 2024.04.06 @ 13:39:45 Sessions 1 Manual Loads 0 Difficulty Rogue Special Mode None Game No. 10 Rogue 10 Adventurer 0 Explorer 0 Win Type - Total 0 Types 0/0/0/0/0/0/0/0/0 Lore% 7 Gallery% 16 Achievement% 16 Wizard Run 0 Options --------- Layout 0 ASCII 0 Keyboard 0 Movement Numpad Keybinds 0 Fullscreen 2 Font 18/X11 Map View 38x25 Zoom Use 78% Tactical HUD 1 Map Filters NONE Filters NONE Steam 1 RUN: f8bb5412-c9b7-4848-9561-9698eb1219a8